bitfinex-derivatives/quotes_BTCF0:USTF0_20260131
["timestamp","ask_amount","ask_price","bid_price","bid_amount"]
[1769818366332,0.00982804,84200.0,84174.0,0.011898]
[1769818366536,0.10708,84201.0,84186.0,0.00927093]
[1769818366835,0.11690804,84201.0,84186.0,0.00123013]
[1769818367532,0.00982804,84200.0,84186.0,0.00123013]
[1769818368743,0.00982804,84200.0,84183.0,0.011897]
[1769818372140,0.00982804,84200.0,84183.0,0.02116793]
[1769818372340,0.00982804,84200.0,84184.0,0.00927093]
[1769818373542,0.24627771,84200.0,84184.0,0.00927093]
[1769818373951,0.00982804,84199.0,84184.0,0.00927093]
[1769818375450,0.24627771,84199.0,84184.0,0.00927093]
[1769818376243,0.00982804,84198.0,84181.0,0.011897]
[1769818376850,0.00982804,84198.0,84181.0,0.02116793]
[1769818379547,0.00982804,84197.0,84175.0,0.10708]
[1769818379746,0.00982804,84190.0,84164.0,0.00927093]
[1769818380052,0.00982804,84186.0,84164.0,0.00927093]
[1769818380252,0.00982804,84185.0,84164.0,0.02116993]
[1769818380451,0.00982804,84183.0,84164.0,0.02116993]
[1769818382545,0.00982804,84183.0,84164.0,0.011899]
[1769818382756,0.00982804,84183.0,84158.0,0.0119]
[1769818383048,0.00982804,84179.0,84158.0,0.0119]
[1769818383244,0.00982804,84177.0,84158.0,0.02117093]
[1769818383643,0.00982804,84177.0,84160.0,0.0119]
[1769818386052,0.00982804,84177.0,84160.0,0.02117093]
[1769818386555,0.40395194,84192.0,84151.0,0.10708]
[1769818386556,0.23644967,84186.0,84169.0,0.00950797]
[1769818386853,0.68772,84185.0,84169.0,0.00950797]
[1769818387046,0.10708,84184.0,84169.0,0.00950797]
[1769818393062,0.11648314,84184.0,84169.0,0.00950797]
[1769818393258,0.00940314,84183.0,84168.0,0.011899]
[1769818393459,0.00940314,84183.0,84165.0,0.00950797]
[1769818395170,0.00940314,84183.0,84162.0,0.0119]
[1769818395557,0.00940314,84183.0,84164.0,0.011899]
[1769818396262,0.00940314,84183.0,84161.0,0.11658797]
[1769818396660,0.00940314,84183.0,84162.0,0.00950797]
[1769818396860,0.10708,84184.0,84170.0,0.00950797]
[1769818397762,0.10708,84184.0,84170.0,0.02140697]
[1769818400067,0.10708,84184.0,84171.0,0.011898]
[1769818402364,0.34352967,84194.0,84183.0,0.00950797]
[1769818402568,0.10708,84194.0,84171.0,0.10708]
[1769818402759,0.09708,84194.0,84188.0,0.011896]
[1769818402959,0.23644967,84202.0,84188.0,0.011896]
[1769818403360,0.58536,84203.0,84185.0,0.011896]
[1769818403962,0.58536,84203.0,84187.0,0.011896]
[1769818404665,0.58536,84203.0,84187.0,0.01567698]
[1769818404866,0.00940314,84202.0,84187.0,0.01567698]
[1769818405271,0.00940314,84202.0,84187.0,0.011896]
[1769818406768,0.00940314,84202.0,84184.0,0.011897]
[1769818407169,0.00940314,84202.0,84186.0,0.011896]
[1769818408674,0.00940314,84202.0,84188.0,0.011896]
[1769818408971,0.00940314,84202.0,84183.0,0.00391414]
[1769818409170,0.00940314,84202.0,84184.0,0.00391414]
[1769818409469,0.00940314,84202.0,84189.0,0.011896]
[1769818409675,0.10708,84205.0,84194.0,0.00391414]
[1769818410471,0.00940314,84204.0,84187.0,0.011896]
[1769818410672,0.00940314,84204.0,84189.0,0.011896]
[1769818411268,0.00940314,84204.0,84186.0,0.00386284]
[1769818411979,0.00940314,84204.0,84191.0,0.011896]
[1769818413070,0.00940314,84204.0,84189.0,0.011896]
[1769818416376,0.10708,84205.0,84186.0,0.00386284]
[1769818416567,0.00908292,84213.0,84197.0,0.011895]
[1769818417080,0.00908292,84213.0,84195.0,0.00391493]
[1769818418583,0.00908292,84213.0,84194.0,0.011895]
[1769818419085,0.00908292,84213.0,84196.0,0.011895]
[1769818420078,0.00908292,84213.0,84191.0,0.00393551]
[1769818420474,0.00908292,84213.0,84193.0,0.00394438]
[1769818420671,0.00908292,84213.0,84200.0,0.011894]
[1769818420971,0.10708,84217.0,84188.0,0.011896]
[1769818420972,0.10708,84217.0,84196.0,0.011895]
[1769818421372,0.10708,84217.0,84205.0,0.011894]
[1769818422080,0.11697275,84217.0,84207.0,0.011893]
[1769818422287,0.10708,84217.0,84208.0,0.011893]
[1769818422577,0.10708,84217.0,84199.0,0.011895]
[1769818422578,0.10708,84217.0,84210.0,0.011893]
[1769818426390,0.11689634,84217.0,84210.0,0.011893]
[1769818428981,0.58824,84227.0,84211.0,0.00045917]
[1769818429680,0.59808694,84227.0,84211.0,0.00045917]
[1769818430080,0.00978654,84226.0,84211.0,0.00045917]
[1769818430984,0.00978654,84226.0,84207.0,0.00064035]
[1769818431178,0.00978654,84226.0,84211.0,0.011893]
[1769818431580,0.00978654,84226.0,84213.0,0.011893]
[1769818432588,0.00978654,84226.0,84214.0,0.011892]
[1769818434086,0.00978654,84226.0,84216.0,0.011892]
[1769818435485,0.00978654,84226.0,84213.0,0.011893]
[1769818442401,0.00978654,84226.0,84207.0,0.00107365]
[1769818443910,0.00978654,84226.0,84205.0,0.10704]
[1769818443911,0.00978654,84226.0,84205.0,0.10811999]
[1769818444410,0.00978654,84226.0,84206.0,0.00107999]
[1769818445000,0.00978654,84226.0,84213.0,0.011892]
[1769818445411,0.00978654,84226.0,84214.0,0.011892]
[1769818446810,0.00978654,84226.0,84211.0,0.011893]
[1769818448810,0.00978654,84226.0,84213.0,0.011893]
[1769818452515,0.00978654,84226.0,84215.0,0.011892]
[1769818453316,0.00978654,84226.0,84206.0,0.00107336]
[1769818453712,0.20046012,84220.0,84213.0,0.011892]
[1769818454420,0.00963193,84219.0,84196.0,0.00110418]
[1769818454618,0.20046012,84210.0,84204.0,0.011894]
[1769818454820,0.20046012,84210.0,84196.0,0.00110418]
[1769818455023,0.00963193,84213.0,84196.0,0.00110418]
[1769818455518,0.00963193,84213.0,84204.0,0.011894]
[1769818456022,0.00963193,84213.0,84205.0,0.011894]
[1769818457820,0.00963193,84213.0,84206.0,0.011893]
[1769818458226,0.00963193,84213.0,84207.0,0.011893]
[1769818459021,0.00963193,84213.0,84205.0,0.011894]
[1769818460222,0.00963193,84213.0,84199.0,0.00123747]
[1769818460421,0.10704,84220.0,84206.0,0.00123747]
[1769818460625,0.10704,84220.0,84215.0,0.011892]
[1769818461419,0.10704,84220.0,84207.0,0.00123747]
[1769818462225,0.10704,84220.0,84214.0,0.011892]
[1769818463229,0.10704,84220.0,84207.0,0.00123747]
[1769818464027,0.00946976,84228.0,84215.0,0.011892]
[1769818464428,0.00946976,84228.0,84213.0,0.011893]
[1769818464728,0.00946976,84228.0,84210.0,0.00159071]
[1769818464934,0.23644967,84229.0,84216.0,0.011892]
[1769818465137,0.20046012,84230.0,84216.0,0.011892]
[1769818465329,0.00946976,84229.0,84216.0,0.011892]
[1769818467938,0.00946976,84229.0,84218.0,0.011892]
[1769818472841,0.00946976,84229.0,84216.0,0.011892]
[1769818473140,0.00946976,84229.0,84217.0,0.011892]
[1769818473341,0.34348967,84232.0,84211.0,0.00159071]
[1769818473538,0.10704,84232.0,84224.0,0.011891]
[1769818473742,0.10704,84232.0,84223.0,0.011891]
[1769818474642,0.10704,84232.0,84223.0,0.00627488]
[1769818474842,0.10704,84232.0,84219.0,0.0016221]
[1769818475040,0.10704,84232.0,84223.0,0.011891]
[1769818476137,0.10704,84232.0,84223.0,0.00632686]
[1769818476442,0.10704,84232.0,84219.0,0.0016221]
[1769818476644,0.10704,84232.0,84223.0,0.011891]
[1769818476843,0.10704,84232.0,84224.0,0.011891]
[1769818477041,0.10704,84232.0,84224.0,0.00631656]
[1769818477847,0.10704,84232.0,84226.0,0.011891]
[1769818478046,0.00999028,84241.0,84226.0,0.011891]
[1769818478849,0.2104504,84240.0,84228.0,0.01189]
[1769818479045,0.00999028,84240.0,84210.0,0.3132]
[1769818479344,0.00999028,84240.0,84225.0,0.011891]
[1769818480049,0.00999028,84240.0,84227.0,0.011891]
[1769818481249,0.2104504,84240.0,84229.0,0.01189]
[1769818481455,0.2104504,84240.0,84227.0,0.011891]
[1769818482053,0.00997646,84239.0,84227.0,0.011891]
[1769818485148,0.00997646,84239.0,84228.0,0.01189]
[1769818489954,0.00997646,84239.0,84222.0,9.349e-05]
[1769818490659,0.00997646,84239.0,84229.0,0.01189]
[1769818494459,0.00997646,84239.0,84226.0,0.011891]
[1769818496460,0.00997646,84239.0,84227.0,0.01189]
[1769818502865,0.00997646,84239.0,84225.0,0.011891]
[1769818503357,0.00998513,84234.0,84206.0,4.458e-05]
[1769818503563,0.20046012,84220.0,84209.0,0.011893]
[1769818503860,0.21046175,84220.0,84209.0,0.011893]
[1769818504261,0.10606539,84219.0,84209.0,0.011893]
[1769818504562,0.10606539,84218.0,84209.0,0.011893]
[1769818504762,0.10606539,84217.0,84209.0,0.011893]
[1769818504963,0.10606539,84216.0,84209.0,0.011893]
[1769818505163,0.10606539,84215.0,84209.0,0.011893]
[1769818505363,0.10606539,84214.0,84209.0,0.011893]
[1769818505571,0.10606539,84213.0,84209.0,0.011893]
[1769818505763,0.10606539,84212.0,84209.0,0.011893]
[1769818505953,0.21046175,84220.0,84209.0,0.011893]
[1769818506153,0.10751965,84219.0,84209.0,0.011893]
[1769818506357,0.10751965,84218.0,84209.0,0.011893]
[1769818506559,0.10751965,84217.0,84209.0,0.011893]
[1769818506762,0.10751965,84216.0,84209.0,0.011893]
[1769818506961,0.10751965,84215.0,84209.0,0.011893]
[1769818507156,0.10751965,84214.0,84209.0,0.011893]
[1769818507361,0.10751965,84213.0,84209.0,0.011893]
[1769818507562,0.01000163,84220.0,84209.0,0.011893]
[1769818507762,0.10748949,84219.0,84211.0,0.011893]
[1769818507963,0.10748949,84218.0,84211.0,0.011893]
[1769818508260,0.10748949,84217.0,84211.0,0.011893]
[1769818508466,0.10748949,84216.0,84211.0,0.011893]
[1769818508665,0.10748949,84215.0,84211.0,0.011893]
[1769818508867,0.10748949,84214.0,84211.0,0.011893]
[1769818509067,0.01011848,84224.0,84211.0,0.011893]
[1769818509363,0.10747359,84223.0,84211.0,0.011893]
[1769818509565,0.10747359,84222.0,84211.0,0.011893]
[1769818509754,0.10747359,84221.0,84211.0,0.011893]
[1769818509957,0.10747359,84220.0,84211.0,0.011893]
[1769818510157,0.10747359,84219.0,84211.0,0.011893]
[1769818510358,0.10747359,84218.0,84211.0,0.011893]
[1769818510563,0.10747359,84217.0,84211.0,0.011893]
[1769818510764,0.10747359,84216.0,84211.0,0.011893]
[1769818510964,0.10747359,84215.0,84211.0,0.011893]
[1769818511261,0.01011848,84224.0,84211.0,0.011893]
[1769818511466,0.10744513,84223.0,84211.0,0.011893]
[1769818511761,0.10744513,84222.0,84211.0,0.011893]
[1769818512065,0.10744513,84221.0,84211.0,0.011893]
[1769818512268,0.10744513,84220.0,84211.0,0.011893]
[1769818512460,0.10744513,84219.0,84211.0,0.011893]
[1769818512763,0.10744513,84218.0,84211.0,0.011893]
[1769818512964,0.10744513,84217.0,84211.0,0.011893]
[1769818513164,0.10744513,84216.0,84211.0,0.011893]
[1769818513465,0.10744513,84215.0,84211.0,0.011893]
[1769818513660,0.10744513,84214.0,84211.0,0.011893]
[1769818513868,0.01011485,84223.0,84211.0,0.011893]
[1769818514060,0.11759273,84222.0,84211.0,0.011893]
[1769818514367,0.107433,84221.0,84211.0,0.011893]
[1769818516471,0.107433,84221.0,84212.0,0.011893]
[1769818517773,0.107433,84220.0,84212.0,0.011893]
[1769818517959,0.107433,84219.0,84212.0,0.011893]
[1769818518273,0.0102133,84229.0,84218.0,0.011892]
[1769818524875,0.0102133,84229.0,84205.0,0.107]
[1769818525575,0.0101368,84226.0,84209.0,0.011893]
[1769818526274,0.0101368,84226.0,84205.0,0.107]
[1769818526275,0.0101368,84226.0,84211.0,0.011893]
[1769818528275,0.0101368,84226.0,84208.0,0.011893]
[1769818528974,0.0101368,84226.0,84210.0,0.011893]
[1769818530178,0.01018279,84224.0,84210.0,0.011893]
[1769818530374,0.01018279,84222.0,84210.0,0.011893]
[1769818530576,0.10535726,84221.0,84210.0,0.011893]
[1769818531081,0.10535726,84221.0,84212.0,0.011893]
[1769818535481,0.01018279,84222.0,84212.0,0.011893]
[1769818541482,0.01018279,84222.0,84205.0,0.107]
[1769818541688,0.01018279,84222.0,84213.0,0.011892]
[1769818546890,0.01018279,84222.0,84210.0,0.011893]
[1769818547090,0.01018279,84222.0,84204.0,0.011894]
[1769818547589,0.01018279,84222.0,84206.0,0.011894]
[1769818547986,0.01018279,84222.0,84198.0,0.011895]
[1769818549192,0.01018279,84222.0,84207.0,0.011893]
[1769818549791,0.01018279,84222.0,84209.0,0.011893]
[1769818551584,0.23791607,84226.0,84199.0,0.011895]
[1769818551789,0.0102157,84227.0,84215.0,0.011892]
[1769818552396,0.10704,84226.0,84213.0,0.011893]
[1769818552597,0.10704,84226.0,84222.0,0.011891]
[1769818552796,0.10704,84226.0,84209.0,0.10704]
[1769818553303,0.10704,84226.0,84223.0,0.011891]
[1769818553496,0.10704,84226.0,84212.0,0.011893]
[1769818554095,0.10704,84226.0,84219.0,0.011892]
[1769818554892,0.0101713,84231.0,84219.0,0.011892]
[1769818555299,0.0101713,84231.0,84220.0,0.011892]
[1769818557200,0.0101713,84231.0,84210.0,0.011893]
[1769818557402,0.0101713,84231.0,84221.0,0.011891]
[1769818562112,0.23791607,84232.0,84221.0,0.011891]
[1769818562609,0.24819114,84232.0,84221.0,0.011891]
[1769818563206,0.01027507,84232.0,84221.0,0.011891]
[1769818563413,0.01027507,84232.0,84211.0,0.011893]
[1769818563600,0.00924555,84222.0,84209.0,0.10704]
[1769818563798,0.00924555,84222.0,84210.0,0.011893]
[1769818572014,0.00924555,84222.0,84200.0,0.011894]
[1769818573105,0.00924555,84222.0,84209.0,0.011893]
[1769818574916,6e-08,84253.0,84248.0,0.00923271]
[1769818575123,0.00910215,84272.0,84251.0,0.011887]
[1769818575326,0.0096283,84271.0,84251.0,0.011887]
[1769818575521,0.71241011,84272.0,84247.0,0.10704]
[1769818575522,0.0096283,84268.0,84247.0,0.10704]
[1769818575915,0.0096283,84268.0,84254.0,0.011887]
[1769818576110,0.81942187,84273.0,84260.0,0.011886]
[1769818576111,0.00963413,84272.0,84260.0,0.011886]
[1769818576324,0.17812,84266.0,84260.0,0.00636392]
[1769818576622,0.17812,84266.0,84248.0,0.011888]
[1769818576812,0.00963413,84272.0,84248.0,0.011888]
[1769818577014,0.71241011,84270.0,84259.0,0.011886]
[1769818577318,0.17812,84265.0,84259.0,0.011886]
[1769818577723,0.71241011,84270.0,84259.0,0.011886]
[1769818577724,0.17812,84263.0,84259.0,0.011886]
[1769818577925,0.17812,84265.0,84259.0,0.011886]
[1769818578323,0.00963413,84272.0,84259.0,0.011886]
[1769818578519,0.71241011,84269.0,84259.0,0.011886]
[1769818579817,0.71241011,84269.0,84261.0,0.011886]
[1769818580024,0.00939978,84286.0,84269.0,0.011885]
[1769818580217,0.00939978,84283.0,84262.0,0.00180065]
[1769818580727,0.72180989,84282.0,84262.0,0.00180065]
[1769818581029,0.00939978,84282.0,84262.0,0.00180065]
[1769818581217,0.71241011,84281.0,84262.0,0.00180065]
[1769818581922,0.00927196,84279.0,84263.0,0.011885]
[1769818582229,0.00927196,84272.0,84260.0,0.011886]
[1769818582423,0.00927196,84272.0,84251.0,0.011887]
[1769818582624,0.00927196,84270.0,84251.0,0.011887]
[1769818582918,0.00927196,84260.0,84239.0,0.0021841]
[1769818583123,0.00927196,84249.0,84242.0,0.011888]
[1769818584929,0.00927196,84249.0,84244.0,0.011888]
[1769818590135,0.60667475,84260.0,84244.0,0.011888]
[1769818590323,0.00929643,84258.0,84244.0,0.011888]
[1769818591835,0.00929643,84258.0,84246.0,0.011888]
[1769818595839,0.00929643,84258.0,84247.0,0.011888]
[1769818599651,0.00929643,84258.0,84248.0,0.011887]
[1769818599853,0.00929643,84258.0,84248.0,0.00636503]
[1769818600555,0.00929643,84258.0,84239.0,0.00877618]
[1769818600952,0.00929643,84258.0,84248.0,0.011887]
[1769818601152,0.00929643,84258.0,84239.0,0.00877618]
[1769818601553,0.00999999,84256.0,84239.0,0.00877618]
[1769818601957,0.00998875,84254.0,84239.0,0.00877618]
[1769818602157,0.00998875,84252.0,84239.0,0.00877618]
[1769818602358,0.00998875,84252.0,84239.0,0.10339858]
[1769818602858,0.00998875,84252.0,84239.0,0.00877618]
[1769818603159,0.00998875,84252.0,84248.0,0.011887]
[1769818603356,0.00998875,84252.0,84240.0,0.09018658]
[1769818603752,0.00998875,84252.0,84247.0,0.011888]
[1769818603961,0.00998875,84252.0,84240.0,0.09018658]
[1769818604259,0.00998875,84252.0,84241.0,0.17843912]
[1769818604454,0.00998875,84252.0,84242.0,0.17843912]
[1769818604655,0.00998875,84252.0,84239.0,0.00877618]
[1769818604954,0.00998875,84252.0,84247.0,0.011888]
[1769818607354,0.00998875,84252.0,84248.0,0.011887]
[1769818607557,0.60192,84253.0,84237.0,0.24946126]
[1769818607760,0.00993891,84251.0,84238.0,0.17843954]
[1769818607964,0.00993891,84249.0,84237.0,0.107]
[1769818608462,0.00993891,84247.0,84242.0,0.011888]
[1769818608663,0.00993891,84247.0,84237.0,0.107]
[1769818609270,0.72234902,84247.0,84237.0,0.107]
[1769818610062,0.72234902,84247.0,84241.0,0.011889]
[1769818611166,0.72234902,84247.0,84237.0,0.107]
[1769818611463,0.00993891,84247.0,84237.0,0.107]
[1769818611663,0.00993891,84247.0,84242.0,0.011888]
[1769818611967,0.00993891,84247.0,84243.0,0.011888]
[1769818612367,0.71241011,84247.0,84238.0,0.00030794]
[1769818612568,0.60192,84253.0,84242.0,0.011888]
[1769818612768,0.71241011,84252.0,84242.0,0.011888]
[1769818613168,0.72230746,84252.0,84242.0,0.011888]
[1769818613666,0.71241011,84252.0,84242.0,0.011888]
[1769818613866,0.71241011,84252.0,84244.0,0.011888]
[1769818614368,0.6082,84251.0,84244.0,0.011888]
[1769818616066,0.6082,84251.0,84244.0,0.01197847]
[1769818616268,0.71684,84257.0,84253.0,0.011887]
[1769818616569,0.71241011,84256.0,84251.0,0.011887]
[1769818617169,0.71241011,84256.0,84249.0,0.011887]
[1769818618474,0.71684,84257.0,84249.0,0.011887]
[1769818618676,1.42925011,84257.0,84249.0,0.011887]
[1769818619965,0.71684,84257.0,84249.0,0.011887]
[1769818621375,0.01002761,84264.0,84251.0,0.011887]
[1769818621574,0.71241011,84263.0,84251.0,0.011887]
[1769818621972,0.61344,84262.0,84251.0,0.011887]
[1769818622173,0.01006301,84261.0,84251.0,0.011887]
[1769818622377,0.01006301,84261.0,84248.0,0.011887]
[1769818622976,0.71241011,84260.0,84248.0,0.011887]
[1769818623880,0.71241011,84259.0,84248.0,0.011887]
[1769818624378,0.01006301,84261.0,84248.0,0.011887]
[1769818624578,0.71241011,84260.0,84248.0,0.011887]
[1769818624880,0.71241011,84260.0,84250.0,0.011887]
[1769818627879,0.01015699,84259.0,84250.0,0.011887]
[1769818629677,0.01015699,84259.0,84240.0,0.107]
[1769818629886,0.01015699,84259.0,84244.0,0.011888]
[1769818631687,0.01015699,84259.0,84246.0,0.011888]
[1769818634383,0.00971961,84257.0,84246.0,0.011888]
[1769818634583,0.63367961,84256.0,84246.0,0.011888]
[1769818635788,0.71241011,84255.0,84248.0,0.011888]
[1769818636283,0.71241011,84255.0,84240.0,0.00944592]
[1769818637387,0.71241011,84255.0,84246.0,0.011888]
[1769818637788,0.71241011,84255.0,84248.0,0.011888]
[1769818639889,0.62396,84256.0,84248.0,0.011888]
[1769818640091,0.71241011,84255.0,84248.0,0.011888]
[1769818641187,0.71241011,84255.0,84241.0,0.011889]
[1769818641378,0.71241011,84255.0,84248.0,0.011887]
[1769818643983,0.24729269,84272.0,84250.0,0.00951063]
[1769818644291,0.63256,84271.0,84262.0,0.011886]
[1769818644491,0.63256,84271.0,84257.0,0.00951063]
[1769818644690,0.63256,84271.0,84257.0,0.00492667]
[1769818644889,0.63256,84271.0,84254.0,0.011887]
[1769818645092,0.09990411,84270.0,84265.0,0.011885]
[1769818645291,0.09990411,84270.0,84264.0,0.011885]
[1769818645496,0.63256,84271.0,84251.0,0.10696]
[1769818645497,0.10696,84273.0,84266.0,0.011885]
[1769818645789,0.09990411,84272.0,84266.0,0.011885]
[1769818646096,0.09990411,84272.0,84263.0,0.011885]
[1769818647492,0.09990411,84272.0,84265.0,0.011885]
[1769818652403,0.00971961,84271.0,84252.0,0.00495473]
[1769818652594,0.00971961,84271.0,84253.0,0.011887]
[1769818653089,0.00971961,84271.0,84254.0,0.011887]
[1769818655000,0.00971961,84271.0,84264.0,0.011885]
[1769818658402,0.00971961,84271.0,84254.0,0.011887]
[1769818659003,0.00971961,84271.0,84264.0,0.011885]
[1769818665005,0.00971961,84271.0,84265.0,0.011885]
[1769818665208,0.00971961,84271.0,84251.0,0.10696]
[1769818665411,0.00971961,84271.0,84258.0,0.011886]
[1769818665604,0.00984972,84270.0,84258.0,0.011886]
[1769818667309,0.00984972,84270.0,84255.0,0.011887]
[1769818667609,0.00984972,84268.0,84255.0,0.011887]
[1769818668503,0.00984972,84268.0,84256.0,0.011886]
[1769818672908,0.00984972,84266.0,84256.0,0.011886]
[1769818674413,0.00984972,84264.0,84253.0,0.011887]
[1769818674613,0.00984972,84264.0,84251.0,0.118847]
[1769818674810,0.00984972,84262.0,84251.0,0.118847]
[1769818675010,0.00984972,84262.0,84252.0,0.011887]
[1769818675207,0.10975383,84261.0,84252.0,0.011887]
[1769818675404,0.00984972,84261.0,84252.0,0.011887]
[1769818675608,0.09990411,84260.0,84252.0,0.011887]
[1769818681420,0.00984972,84259.0,84252.0,0.011887]
[1769818681617,0.00984972,84259.0,84241.0,0.011888]
[1769818681819,0.09990411,84260.0,84242.0,0.00940664]
[1769818682021,0.09990411,84260.0,84254.0,0.011887]
[1769818684922,0.10696,84267.0,84254.0,0.011887]
[1769818684923,0.10696,84267.0,84258.0,0.011886]
[1769818685125,0.00984972,84272.0,84260.0,0.011886]
[1769818685324,0.10696,84271.0,84260.0,0.011886]
[1769818685726,0.10696,84271.0,84257.0,0.02129264]
[1769818687034,0.00900917,84277.0,84258.0,0.00940018]
[1769818687434,0.00900917,84277.0,84261.0,0.011886]
[1769818689230,0.00900917,84275.0,84258.0,0.011886]
[1769818689830,0.00900917,84275.0,84260.0,0.011886]
[1769818690836,0.00900917,84275.0,84261.0,0.011886]
[1769818691032,0.00900917,84275.0,84253.0,0.00940018]
[1769818691238,0.00900917,84275.0,84262.0,0.011886]
[1769818692434,0.00900917,84275.0,84252.0,0.10696]
[1769818692435,0.00900917,84275.0,84260.0,0.011886]
[1769818692633,0.00900917,84275.0,84265.0,0.011885]
[1769818693938,0.00900917,84275.0,84259.0,0.00940018]
[1769818693939,0.10696,84276.0,84262.0,0.00940018]
[1769818694639,0.10696,84276.0,84268.0,0.011885]
[1769818694840,0.11596917,84276.0,84266.0,0.011885]
[1769818697551,0.23757308,84286.0,84273.0,0.011884]
[1769818697742,0.00900917,84285.0,84266.0,0.00940018]
[1769818698140,0.00900917,84285.0,84269.0,0.011885]
[1769818698848,0.00900917,84285.0,84270.0,0.011884]
[1769818700646,0.011882,84286.0,84246.0,0.10392484]
[1769818700647,0.00900917,84270.0,84246.0,0.10392484]
[1769818700840,0.00900917,84270.0,84255.0,0.011887]
[1769818703148,0.20914074,84280.0,84261.0,0.00940018]
[1769818703341,0.20914074,84280.0,84265.0,0.011885]
[1769818703542,0.00900917,84279.0,84265.0,0.011885]
[1769818704348,0.00900917,84279.0,84261.0,0.00940018]
[1769818705056,0.00900917,84279.0,84264.0,0.011885]
[1769818706950,0.00900917,84279.0,84262.0,0.00940018]
[1769818707155,0.00900917,84279.0,84263.0,0.011885]
[1769818707352,0.00900917,84278.0,84263.0,0.011885]
[1769818710958,0.00900917,84278.0,84267.0,0.011885]
[1769818711351,0.00900917,84278.0,84265.0,0.011885]
[1769818714263,0.00900917,84278.0,84267.0,0.011885]
[1769818714962,0.00900917,84278.0,84264.0,0.011885]
[1769818717867,0.00900917,84278.0,84266.0,0.011885]
[1769818718162,0.10696,84277.0,84266.0,0.011885]
[1769818718364,0.10696,84277.0,84266.0,0.00934166]
[1769818718565,0.0090968,84276.0,84258.0,0.00934166]
[1769818718765,0.0090968,84276.0,84260.0,0.00934166]
[1769818718969,0.0090968,84276.0,84264.0,0.011885]
[1769818726471,0.10696,84277.0,84265.0,0.02122666]
[1769818729375,0.10696,84277.0,84265.0,0.011885]
[1769818730476,0.10696,84277.0,84267.0,0.011885]
[1769818731978,0.0090968,84276.0,84267.0,0.011885]
[1769818732178,0.0090968,84276.0,84265.0,0.011885]
[1769818737883,0.0090968,84274.0,84262.0,0.011886]
[1769818738090,0.0090968,84274.0,84256.0,0.10696]
[1769818738091,0.0090968,84269.0,84259.0,0.011886]
[1769818739475,0.20013157,84272.0,84261.0,0.011886]
[1769818739677,0.20922837,84272.0,84261.0,0.011886]
[1769818740493,0.4566,84275.0,84257.0,0.00934166]
[1769818740693,0.75332,84289.0,84274.0,0.011884]
[1769818740990,0.0090968,84283.0,84268.0,0.011885]
[1769818741193,0.011883,84282.0,84266.0,0.011885]
[1769818741497,0.011883,84281.0,84264.0,0.011885]
[1769818742191,0.0090968,84278.0,84261.0,0.011886]
[1769818742388,0.0090968,84273.0,84261.0,0.011886]
[1769818742888,0.0090968,84275.0,84261.0,0.011886]
[1769818744085,0.0090968,84275.0,84262.0,0.011886]
[1769818744290,0.0090968,84278.0,84263.0,0.011885]
[1769818744489,0.1160568,84277.0,84263.0,0.011885]
[1769818746798,0.00904873,84276.0,84263.0,0.011885]
[1769818752500,0.00904873,84276.0,84258.0,0.00920903]
[1769818752501,0.00904873,84276.0,84261.0,0.011886]
[1769818753497,0.00904873,84274.0,84261.0,0.011886]
[1769818755202,0.011884,84275.0,84261.0,0.02109503]
[1769818755398,0.00904873,84276.0,84253.0,0.10696]
[1769818755604,0.00904873,84270.0,84253.0,0.10696]
[1769818755804,0.00904873,84270.0,84254.0,0.00920903]
[1769818756807,0.00904873,84269.0,84258.0,0.011886]
[1769818757012,0.20013157,84270.0,84258.0,0.011886]
[1769818757208,0.02093273,84274.0,84258.0,0.011886]
[1769818757410,0.00904873,84273.0,84258.0,0.011886]
[1769818762503,0.00904873,84271.0,84256.0,0.011886]
[1769818763410,0.00904873,84271.0,84257.0,0.011886]
[1769818766711,0.00904873,84271.0,84258.0,0.011886]
[1769818770315,0.00904873,84271.0,84256.0,0.00920903]
[1769818770617,0.02093273,84275.0,84256.0,0.00920903]
[1769818770916,0.00904873,84274.0,84256.0,0.00920903]
[1769818772016,0.00904873,84274.0,84259.0,0.011886]
[1769818778123,0.00904873,84274.0,84262.0,0.011886]
[1769818778318,0.00904873,84274.0,84259.0,0.00995523]
[1769818778524,0.10696,84273.0,84259.0,0.00995523]
[1769818779418,0.10696,84272.0,84259.0,0.00995523]
[1769818780025,0.10696,84272.0,84262.0,0.011886]
[1769818780225,0.00904873,84274.0,84262.0,0.011886]
[1769818780420,0.10696,84273.0,84262.0,0.011886]
[1769818780619,0.00904873,84274.0,84262.0,0.011886]
[1769818780818,0.10696,84273.0,84262.0,0.011886]
[1769818781020,0.00904873,84274.0,84262.0,0.011886]
[1769818781221,0.10696,84273.0,84262.0,0.011886]
[1769818781622,0.00904873,84274.0,84262.0,0.011886]
[1769818782027,0.10696,84273.0,84262.0,0.011886]
[1769818782925,0.10696,84272.0,84262.0,0.011886]
[1769818783622,0.00904873,84274.0,84262.0,0.011886]
[1769818783823,0.10696,84273.0,84262.0,0.011886]
[1769818784834,0.10696,84273.0,84263.0,0.011885]
[1769818785033,0.10696,84273.0,84259.0,0.00995523]
[1769818785428,0.00904873,84274.0,84259.0,0.00995523]
[1769818785632,0.10696,84273.0,84259.0,0.00995523]
[1769818785927,0.10696,84273.0,84263.0,0.011885]
[1769818786332,0.10696,84272.0,84263.0,0.011885]
[1769818788835,0.00904873,84274.0,84263.0,0.011885]
[1769818789029,0.75632,84273.0,84263.0,0.011885]
[1769818789635,0.00904873,84274.0,84264.0,0.011885]
[1769818789834,0.75648,84273.0,84264.0,0.011885]
[1769818790030,0.23757308,84281.0,84264.0,0.00995523]
[1769818790238,0.24661837,84284.0,84264.0,0.00995523]
[1769818790832,0.24661837,84284.0,84267.0,0.00995523]
[1769818791033,0.24661837,84284.0,84270.0,0.011884]
[1769818791330,0.24661837,84284.0,84268.0,0.011885]
[1769818792031,0.00904529,84283.0,84268.0,0.011885]
[1769818792738,0.00904529,84283.0,84270.0,0.011885]
[1769818794938,0.00904529,84283.0,84267.0,0.00995523]
[1769818795334,0.00904529,84283.0,84270.0,0.011885]
[1769818796144,0.23757308,84284.0,84270.0,0.02184023]
[1769818796336,0.23757308,84284.0,84271.0,0.02183923]
[1769818797132,0.23757308,84284.0,84271.0,0.011884]
[1769818797338,0.24661837,84284.0,84271.0,0.011884]